bitfinex/quotes_BTCUSD_20250619
["timestamp","ask_amount","ask_price","bid_price","bid_amount"]
[1750355657284,1.08684608,104810.0,104800.0,0.16212]
[1750355659524,1.08684608,104810.0,104800.0,0.19183969]
[1750355659745,1.08684608,104810.0,104800.0,0.35295969]
[1750355659959,1.08684608,104810.0,104800.0,0.36250167]
[1750355660896,1.08684608,104810.0,104800.0,0.38158518]
[1750355662117,0.9151061,104810.0,104800.0,0.40066804]
[1750355662563,1.11546856,104810.0,104800.0,0.40066804]
[1750355662818,1.12500963,104810.0,104800.0,0.40066804]
[1750355663494,1.11546902,104810.0,104800.0,0.38158518]
[1750355663939,1.11546902,104810.0,104800.0,0.3911268]
[1750355664171,1.11546902,104810.0,104800.0,0.38158518]
[1750355665284,1.10592813,104810.0,104800.0,0.37204347]
[1750355665510,1.09638715,104810.0,104800.0,0.37204347]
[1750355666163,1.09638715,104810.0,104800.0,0.3911268]
[1750355666847,1.18150096,104810.0,104800.0,0.3911268]
[1750355667099,1.18150096,104810.0,104800.0,0.37204347]
[1750355668279,1.17195989,104810.0,104800.0,0.36250167]
[1750355669883,1.08684608,104810.0,104800.0,0.36250167]
[1750355670114,1.08684608,104810.0,104800.0,0.37204338]
[1750355671537,1.10592758,104810.0,104800.0,0.3815849]
[1750355671762,1.12500963,104810.0,104800.0,0.39112624]
[1750355671995,1.12500963,104810.0,104800.0,0.3815849]
[1750355672224,1.11546902,104810.0,104800.0,0.3815849]
[1750355672692,0.91840774,104810.0,104800.0,0.3815849]
[1750355673675,0.89932587,104810.0,104800.0,0.35295969]
[1750355673893,0.8897848,104810.0,104800.0,0.36250167]
[1750355674113,0.8897848,104810.0,104800.0,0.37204347]
[1750355674367,0.8897848,104810.0,104800.0,0.001]
[1750355674584,0.8897848,104810.0,104800.0,0.16196]
[1750355674803,0.8897848,104810.0,104800.0,0.35279969]
[1750355675720,0.9212848,104810.0,104800.0,0.36234167]
[1750355676448,0.9212848,104810.0,104800.0,0.37188356]
[1750355677146,0.4299102,104810.0,104800.0,0.38142536]
[1750355677370,0.9212848,104810.0,104800.0,0.39096707]
[1750355677593,0.8897848,104810.0,104800.0,0.39096707]
[1750355678571,0.91840692,104810.0,104800.0,0.40050805]
[1750355678806,0.91840774,104810.0,104800.0,0.40050805]
[1750355679025,0.92794854,104810.0,104800.0,0.40050823]
[1750355679246,0.93748906,104810.0,104800.0,0.40050777]
[1750355680318,0.69508553,104810.0,104800.0,0.40050777]
[1750355680572,0.17508872,104810.0,104800.0,0.55978624]
[1750355680797,0.002,104810.0,104800.0,0.55978624]
[1750355681702,0.002,104810.0,104800.0,0.57432709]
[1750355682813,0.001,104810.0,104800.0,0.57432709]
[1750355683035,0.34,104820.0,104810.0,0.2842436]
[1750355683289,0.34,104820.0,104810.0,0.37952253]
[1750355684763,5e-05,104830.0,104820.0,0.21942267]
[1750355684968,0.4914246,104830.0,104820.0,0.5399416]
[1750355686890,0.51050173,104830.0,104820.0,0.3464016]
[1750355687120,0.52104062,104830.0,104820.0,0.5072016]
[1750355687335,0.52204062,104830.0,104820.0,0.5082016]
[1750355687572,0.51250173,104830.0,104820.0,0.5082016]
[1750355687799,0.52204062,104830.0,104820.0,0.5082016]
[1750355688252,0.50296303,104830.0,104820.0,0.5082016]
[1750355688494,0.52204034,104830.0,104820.0,0.5082016]
[1750355688681,0.52204025,104830.0,104820.0,0.5082016]
[1750355689578,0.54111811,104830.0,104820.0,0.5082016]
[1750355690261,0.53157904,104830.0,104820.0,0.5082016]
[1750355690475,0.54111802,104830.0,104820.0,0.5082016]
[1750355691327,0.54111866,104830.0,104820.0,0.5082016]
[1750355692707,0.73190447,104830.0,104820.0,0.46696208]
[1750355692913,0.71282698,104830.0,104820.0,0.47650206]
[1750355693112,0.71282698,104830.0,104820.0,0.48604176]
[1750355693255,0.71282698,104830.0,104820.0,0.51814176]
[1750355693676,0.22145238,104830.0,104820.0,0.52768137]
[1750355693894,0.5029633,104830.0,104820.0,0.52768082]
[1750355694128,0.52204116,104830.0,104820.0,0.52768082]
[1750355694478,0.73190392,104830.0,104820.0,0.52768082]
[1750355695173,0.53157959,104830.0,104820.0,0.52768082]
[1750355697473,0.54111875,104830.0,104820.0,0.52768082]
[1750355697688,0.53157941,104830.0,104820.0,0.52768082]
[1750355697898,0.54111848,104830.0,104820.0,0.52768082]
[1750355698114,0.54111848,104830.0,104820.0,0.55968082]
[1750355699232,0.73190429,104830.0,104820.0,0.55968082]
[1750355699444,0.52204098,104830.0,104820.0,0.55968082]
[1750355699646,0.53158005,104830.0,104820.0,0.55968082]
[1750355700280,0.53158005,104830.0,104820.0,0.52768082]
[1750355700490,0.52204098,104830.0,104820.0,0.52768082]
[1750355700695,0.53158005,104830.0,104820.0,0.52768082]
[1750355701353,0.73190429,104830.0,104820.0,0.52768082]
[1750355701590,0.54111921,104830.0,104820.0,0.52768082]
[1750355701811,0.50296303,104830.0,104820.0,0.55898082]
[1750355702033,0.01158852,104830.0,104820.0,0.55898082]
[1750355702243,0.51250182,104830.0,104820.0,0.55898082]
[1750355702454,0.4934246,104830.0,104820.0,0.55898082]
[1750355702671,0.50296303,104830.0,104820.0,0.55898082]
[1750355703109,0.4934246,104830.0,104820.0,0.55898082]
[1750355704995,0.00205,104830.0,104820.0,0.55898082]
[1750355705226,0.4934246,104830.0,104820.0,0.55898082]
[1750355707461,0.4934246,104830.0,104820.0,0.39818082]
[1750355707686,1.33433772,104830.0,104820.0,0.35734121]
[1750355707911,0.88307313,104830.0,104820.0,0.51786121]
[1750355708099,0.85250191,104830.0,104820.0,0.51786121]
[1750355708352,0.8334246,104830.0,104820.0,0.55026121]
[1750355708571,0.84296303,104830.0,104820.0,0.55026121]
[1750355709008,0.8334246,104830.0,104820.0,0.55026121]
[1750355709495,0.84296312,104830.0,104820.0,0.55026121]
[1750355709937,0.8334246,104830.0,104820.0,0.55026121]
[1750355710368,0.84296312,104830.0,104820.0,0.55026121]
[1750355710821,0.34205,104830.0,104820.0,0.55026121]
[1750355711042,0.84296312,104830.0,104820.0,0.38974121]
[1750355711264,0.84296312,104830.0,104820.0,0.55022121]
[1750355711487,0.8334246,104830.0,104820.0,0.55022121]
[1750355711703,0.85250164,104830.0,104820.0,0.55022121]
[1750355711952,0.85250173,104830.0,104820.0,0.55022121]
[1750355714369,0.86204071,104830.0,104820.0,0.38974121]
[1750355714588,0.85250173,104830.0,104820.0,0.55018121]
[1750355715900,0.85250164,104830.0,104820.0,0.55018121]
[1750355716345,0.85704043,104830.0,104820.0,0.55018121]
[1750355716563,0.84750164,104830.0,104820.0,0.55018121]
[1750355717021,0.85704043,104830.0,104820.0,0.55018121]
[1750355717217,0.84750164,104830.0,104820.0,0.55018121]
[1750355718489,0.85704043,104830.0,104820.0,0.55014121]
[1750355718699,0.86657941,104830.0,104820.0,0.55014121]
[1750355718911,0.84750164,104830.0,104820.0,0.55014121]
[1750355719127,0.85704043,104830.0,104820.0,0.55014121]
[1750355719602,1.34841503,104830.0,104820.0,0.51594121]
[1750355720923,1.35795401,104830.0,104820.0,0.51594121]
[1750355721138,1.34841503,104830.0,104820.0,0.51594121]
[1750355721345,1.35795392,104830.0,104820.0,0.51594121]
[1750355722026,0.01908295,104800.0,104790.0,0.2234579]
[1750355722315,0.35908478,104790.0,104780.0,0.28419022]
[1750355722553,1.33229145,104790.0,104780.0,0.29373338]
[1750355722750,0.37707704,104790.0,104780.0,0.46605338]
[1750355723203,1.3227492,104790.0,104780.0,0.46605338]
[1750355723422,0.38770817,104800.0,104790.0,0.22348585]
[1750355723644,0.37816619,104800.0,104790.0,0.2330281]
[1750355723869,0.38016619,104800.0,104790.0,0.21240079]
[1750355724085,0.342,104800.0,104790.0,0.25902828]
[1750355724303,0.34,104800.0,104790.0,0.29112828]
[1750355724541,0.36862166,104810.0,104800.0,0.2405232]
[1750355724738,0.86953706,104810.0,104800.0,0.2405232]
[1750355724957,0.34954034,104810.0,104800.0,0.34534356]
[1750355725176,0.34954034,104810.0,104800.0,0.5600249]
[1750355725177,0.85999635,104810.0,104800.0,0.5600249]
[1750355725597,0.85999644,104810.0,104800.0,0.5600249]
[1750355725812,0.8313746,104810.0,104800.0,0.5600249]
[1750355726061,0.34954043,104810.0,104800.0,0.5604649]
[1750355726255,0.85045537,104810.0,104800.0,0.5604649]
[1750355726463,0.85999598,104810.0,104800.0,0.5604649]
[1750355726897,0.87883285,104820.0,104810.0,0.20990317]
[1750355727120,1.57055071,104820.0,104810.0,0.3051821]
[1750355727350,1.56101119,104820.0,104810.0,0.30518228]
[1750355727548,1.54193141,104820.0,104810.0,0.30518228]
[1750355728199,1.54693141,104820.0,104810.0,0.29664139]
[1750355728412,1.54693141,104820.0,104810.0,0.30618228]
[1750355729268,1.54693141,104820.0,104810.0,0.31572308]
[1750355729753,1.64220126,104820.0,104810.0,0.31572308]
[1750355729955,0.65745206,104820.0,104810.0,0.31472308]
[1750355730167,1.54493141,104820.0,104810.0,0.09527893]
[1750355730384,1.54193141,104820.0,104810.0,0.09527893]
[1750355730587,1.54693141,104820.0,104810.0,0.10582]
[1750355730803,1.54693141,104820.0,104810.0,0.30618246]
[1750355731015,1.54193141,104820.0,104810.0,0.30518246]
[1750355731447,1.54293141,104820.0,104810.0,0.31572326]
[1750355732095,1.54293141,104820.0,104810.0,0.34732326]
[1750355732562,1.54293141,104820.0,104810.0,0.32824148]
[1750355733043,1.63820126,104820.0,104810.0,0.13742]
[1750355733257,1.63820126,104820.0,104810.0,0.09627893]
[1750355733730,1.67020126,104820.0,104810.0,0.09627893]
[1750355733997,1.70020126,104820.0,104810.0,0.17356]
[1750355734198,1.73469817,104820.0,104810.0,0.17356]
[1750355735052,0.54992338,104800.0,104790.0,0.0316]
[1750355735266,1.53267258,104800.0,104790.0,0.26775893]
[1750355735707,1.04129798,104800.0,104790.0,0.47770252]
[1750355735932,1.04129798,104800.0,104790.0,0.48724523]
[1750355736168,1.04129798,104800.0,104790.0,0.49678785]
[1750355736431,1.04129798,104800.0,104790.0,0.48724523]
[1750355736655,1.52313087,104800.0,104790.0,0.26775893]
[1750355736896,0.2004007,104790.0,104780.0,0.26690885]
[1750355737074,1.1831499,104790.0,104780.0,0.49494434]
[1750355737342,1.5231499,104790.0,104780.0,0.09527893]
[1750355737560,0.00954362,104780.0,104770.0,0.29093974]
[1750355737760,0.72042502,104780.0,104770.0,0.55865867]
[1750355738019,0.71088167,104780.0,104770.0,0.33573033]
[1750355738269,0.70133814,104780.0,104770.0,0.4681658]
[1750355738478,0.69179452,104780.0,104770.0,0.4681658]
[1750355738714,0.69179452,104780.0,104770.0,0.47771042]
[1750355738956,0.00954453,104770.0,104760.0,0.23201166]
[1750355739170,0.71090261,104770.0,104760.0,0.51886102]
[1750355739612,0.71090261,104770.0,104760.0,0.52844601]
[1750355739613,0.05290107,104770.0,104760.0,0.52844601]
[1750355739835,0.54427567,104770.0,104760.0,0.52844601]
[1750355740061,0.73517,104770.0,104760.0,0.52844601]
[1750355740498,0.53573096,104770.0,104760.0,0.53144601]
[1750355741170,0.72662529,104770.0,104760.0,0.5219012]
[1750355741384,0.72662529,104770.0,104760.0,0.53144628]
[1750355741624,0.81743571,104770.0,104760.0,0.53144628]
[1750355741876,0.73617,104770.0,104760.0,0.53144628]
[1750355742319,0.53573096,104770.0,104760.0,0.54099127]
[1750355742783,0.73617,104770.0,104760.0,0.54099127]
[1750355743006,0.73617,104770.0,104760.0,0.5239012]
[1750355743448,1.54845563,104770.0,104760.0,0.48310264]
[1750355743673,0.56570643,104770.0,104760.0,0.50219343]
[1750355743912,0.56570643,104770.0,104760.0,0.53459343]
[1750355744154,1.05708103,104770.0,104760.0,0.49264808]
[1750355744379,1.5293663,104770.0,104760.0,0.10037893]
[1750355744601,1.62455221,104770.0,104760.0,0.28264455]
[1750355745036,1.62455221,104770.0,104760.0,0.27309893]
[1750355746423,0.37481073,104770.0,104760.0,0.55604727]
[1750355746648,0.87572959,104770.0,104760.0,0.55604727]
[1750355746869,0.89481838,104770.0,104760.0,0.55604727]
[1750355747386,0.88527394,104770.0,104760.0,0.55604727]
[1750355747878,0.85664144,104770.0,104760.0,0.55604727]
[1750355748100,0.8661857,104770.0,104760.0,0.55604727]
[1750355748316,0.87573023,104770.0,104760.0,0.55604727]
[1750355748541,0.3748111,104770.0,104760.0,0.55604727]
[1750355748760,0.85664144,104770.0,104760.0,0.55604727]
[1750355748990,0.8661857,104770.0,104760.0,0.55604727]
[1750355749229,0.85664144,104770.0,104760.0,0.55604727]
[1750355749446,0.8661857,104770.0,104760.0,0.55604727]
[1750355749667,0.85664144,104770.0,104760.0,0.55604727]
[1750355749874,0.86618579,104770.0,104760.0,0.55604727]
[1750355750086,0.85664144,104770.0,104760.0,0.55604727]
[1750355750580,0.86618561,104770.0,104760.0,0.55604727]
[1750355750792,0.84709737,104770.0,104760.0,0.55604727]
[1750355751001,0.86618543,104770.0,104760.0,0.55604727]
[1750355751213,0.86618533,104770.0,104760.0,0.55604727]
[1750355751890,0.85664126,104770.0,104760.0,0.55604727]
[1750355752343,0.87572968,104770.0,104760.0,0.55604727]
[1750355753470,0.8757295,104770.0,104760.0,0.55604727]
[1750355753909,0.88527394,104770.0,104760.0,0.55604727]
[1750355754355,0.85664126,104770.0,104760.0,0.55604727]
[1750355754596,0.86618533,104770.0,104760.0,0.55604727]
[1750355754823,0.88527412,104770.0,104760.0,0.55604727]
[1750355755750,0.88527412,104770.0,104760.0,0.0051]
[1750355755751,1.65387405,104770.0,104760.0,0.0051]
[1750355755986,1.75004394,104770.0,104760.0,0.0051]
[1750355756215,1.71775536,104770.0,104760.0,0.0051]
[1750355756663,1.71775536,104770.0,104760.0,0.0031]
[1750355756879,1.71775536,104770.0,104760.0,0.0001]
[1750355756880,1.71675536,104770.0,104760.0,0.0001]
[1750355757166,1.71775536,104770.0,104760.0,0.0021]
[1750355758535,1.5894072,104760.0,104750.0,0.17266]
[1750355758760,1.68467705,104760.0,104750.0,0.0001]
[1750355759675,1.5894072,104760.0,104750.0,0.0001]
[1750355759889,1.5894072,104760.0,104750.0,0.0021]
[1750355760047,1.5904072,104760.0,104750.0,0.0061]
[1750355761495,0.54047713,104750.0,104740.0,0.0001]
[1750355761760,1.55452633,104750.0,104740.0,0.0001]
[1750355762299,1.70829419,104750.0,104740.0,0.0001]
[1750355763321,1.71029419,104750.0,104740.0,0.0001]
[1750355763768,1.72812566,104750.0,104740.0,0.0001]
[1750355764611,1.71029419,104750.0,104740.0,0.0001]
[1750355764873,1.72812273,104750.0,104740.0,0.0001]
[1750355765791,1.71857638,104750.0,104720.0,0.26402559]
[1750355766015,1.1928127,104730.0,104720.0,0.12617893]
[1750355766241,1.5328127,104730.0,104720.0,0.09537893]
[1750355766675,1.5328127,104730.0,104720.0,0.0001]
[1750355767377,0.5500635,104730.0,104720.0,0.0001]
[1750355767588,1.5328127,104730.0,104720.0,0.0001]
[1750355768262,1.5641127,104730.0,104720.0,0.0001]
[1750355768739,1.5671127,104730.0,104720.0,0.0001]
[1750355768966,1.66238255,104730.0,104720.0,0.0011]
[1750355769401,0.54053457,104720.0,104710.0,0.0001]
[1750355769629,1.52328377,104720.0,104710.0,0.09537893]
[1750355769850,1.52328377,104720.0,104710.0,0.10420081]
[1750355770101,1.52328377,104720.0,104710.0,0.00892188]
[1750355770315,1.55358377,104720.0,104710.0,0.00892188]
[1750355770528,1.64885362,104720.0,104710.0,0.00892188]
[1750355770747,1.42856814,104720.0,104710.0,0.00892188]
[1750355770981,1.52428377,104720.0,104710.0,0.00892188]
[1750355772319,1.52728377,104720.0,104710.0,0.00892188]
[1750355772790,1.59028377,104720.0,104710.0,0.00892188]
[1750355773455,1.59028377,104720.0,104710.0,0.0001]
[1750355773911,1.60810377,104720.0,104710.0,0.0001]
[1750355774351,1.77890377,104720.0,104710.0,0.0001]
[1750355774573,1.87417362,104720.0,104710.0,0.0001]
[1750355775687,1.70337362,104720.0,104710.0,0.0001]
[1750355775895,1.73627362,104720.0,104710.0,0.0001]
[1750355776373,1.70337362,104720.0,104710.0,0.0001]
[1750355776596,1.90429362,104720.0,104710.0,0.0001]
[1750355776820,1.90429362,104720.0,104700.0,0.0001]
[1750355776821,0.54057287,104700.0,104690.0,0.0309]
[1750355777044,0.19104021,104690.0,104680.0,0.2633112]
[1750355777271,0.69196672,104690.0,104680.0,0.37474222]
[1750355777488,0.69196672,104690.0,104680.0,0.38429477]
[1750355777489,0.70151818,104690.0,104680.0,0.38429477]
[1750355777679,0.72062201,104690.0,104680.0,0.39384723]
[1750355777942,0.71107055,104690.0,104680.0,0.39384723]
[1750355778156,0.71107055,104690.0,104680.0,0.56428723]
[1750355778579,0.71107055,104690.0,104680.0,0.5738396]
[1750355778794,0.71107055,104690.0,104680.0,0.16457838]
[1750355778795,0.72439205,104690.0,104680.0,0.16457838]
[1750355779001,0.72439205,104690.0,104680.0,0.5451824]
[1750355779217,0.72439205,104690.0,104680.0,0.36814295]
[1750355779439,0.72739205,104690.0,104680.0,0.55465259]
[1750355779654,0.72839205,104690.0,104680.0,0.56420505]
[1750355779867,0.72839205,104690.0,104680.0,0.57375742]
[1750355780332,0.75749001,104690.0,104680.0,0.5642045]
[1750355780760,0.75749001,104690.0,104680.0,0.54486004]
[1750355780976,0.75749001,104690.0,104680.0,0.3651874]
[1750355781213,0.74793819,104690.0,104680.0,0.5353074]
[1750355781452,0.73838628,104690.0,104680.0,0.33469602]
[1750355782181,0.73838628,104690.0,104680.0,0.52576212]
[1750355782403,0.73838628,104690.0,104680.0,0.53531495]
[1750355782858,0.73838628,104690.0,104680.0,0.33470366]
[1750355784008,0.0173215,104690.0,104680.0,0.52576212]
[1750355784220,0.004,104690.0,104680.0,0.56872063]
[1750355784657,0.4953746,104690.0,104680.0,0.56872119]
[1750355785098,0.4913746,104690.0,104680.0,0.56872119]
[1750355785557,0.4933746,104690.0,104680.0,0.57172119]
[1750355788028,0.4933746,104690.0,104680.0,0.57172925]
[1750355788253,0.4933746,104690.0,104680.0,0.40184925]
[1750355788480,0.4933746,104690.0,104680.0,0.57132925]
[1750355789397,0.4933746,104690.0,104680.0,0.57133188]
[1750355790697,0.4933746,104690.0,104680.0,0.5647159]
[1750355790915,0.4933746,104690.0,104680.0,0.40185689]
[1750355791140,0.4933746,104690.0,104680.0,0.57097689]
[1750355791403,0.50292578,104690.0,104680.0,0.57097689]
[1750355791663,0.4933746,104690.0,104680.0,0.57097689]
[1750355791879,0.36110283,104690.0,104680.0,0.38731604]
[1750355792102,0.84292578,104690.0,104680.0,0.55631604]
[1750355792323,0.86202879,104690.0,104680.0,0.55631604]
[1750355793225,0.86202879,104690.0,104680.0,0.38731604]
[1750355793453,1.54444424,104690.0,104680.0,0.51536385]
[1750355793668,1.53489287,104690.0,104680.0,0.52475659]
[1750355793897,1.03396663,104690.0,104680.0,0.34636395]
[1750355794114,1.03396663,104690.0,104680.0,0.30503992]
[1750355794324,1.03196663,104690.0,104680.0,0.30203992]
[1750355794539,1.03396663,104690.0,104680.0,0.30303992]
[1750355794968,1.03396663,104690.0,104680.0,0.30203992]
[1750355795195,0.342,104690.0,104680.0,0.54450376]
[1750355795487,0.85247724,104690.0,104680.0,0.54550395]
[1750355795713,0.34955128,104690.0,104680.0,0.40075744]
[1750355795924,0.86002907,104690.0,104680.0,0.5358713]
[1750355796113,0.8333746,104690.0,104680.0,0.39578093]
[1750355796356,0.8333746,104690.0,104680.0,0.57908178]
[1750355796574,0.84292588,104690.0,104680.0,0.57908178]
[1750355796998,0.85247734,104690.0,104680.0,0.57908178]
[1750355797436,0.85247743,104690.0,104680.0,0.57908178]
[1750355797691,0.85247743,104690.0,104680.0,0.56442093]
[1750355797944,0.38020656,104690.0,104680.0,0.56442093]
[1750355798151,0.86202925,104690.0,104680.0,0.56442093]
[1750355798804,1.06262147,104690.0,104680.0,0.55486884]
[1750355799019,0.86202925,104690.0,104680.0,0.54167367]
[1750355799275,0.86202925,104690.0,104680.0,0.49145353]
[1750355799276,1.55399607,104690.0,104680.0,0.49145353]
[1750355799489,1.55399607,104690.0,104680.0,0.50100608]
[1750355799915,1.54444479,104690.0,104680.0,0.49145353]
[1750355800379,1.53489324,104690.0,104680.0,0.10301658]
[1750355800605,1.53489324,104690.0,104680.0,0.27161658]
[1750355800606,1.56649324,104690.0,104680.0,0.27161658]
[1750355801090,1.81753298,104690.0,104680.0,0.27161658]
[1750355801278,1.81753298,104690.0,104680.0,0.4817807]
[1750355801786,1.81753298,104690.0,104680.0,0.10301658]
[1750355802007,0.54061138,104680.0,104670.0,0.19117628]
[1750355802230,1.77440032,104680.0,104670.0,0.09537893]
[1750355802452,1.77440032,104680.0,104670.0,0.16878]
[1750355803599,1.77440032,104680.0,104670.0,0.0011]
[1750355803811,1.80670032,104680.0,104670.0,0.16958]
[1750355804021,1.80670032,104680.0,104670.0,0.16858]
[1750355804236,1.81070032,104680.0,104670.0,0.0001]
[1750355804461,1.84150032,104680.0,104670.0,0.17747169]
[1750355804891,1.93677017,104680.0,104670.0,0.17747169]
[1750355805135,1.84150032,104680.0,104670.0,0.17747169]
[1750355805763,1.84150032,104680.0,104670.0,0.16862]
[1750355806397,1.84150032,104680.0,104670.0,0.0001]
[1750355806620,1.84150032,104680.0,104670.0,0.16842]
[1750355807050,1.84150032,104680.0,104670.0,0.0001]
[1750355807051,1.89010032,104680.0,104670.0,0.0001]
[1750355807260,1.95101044,104680.0,104670.0,0.0001]
[1750355807478,1.18862483,104670.0,104660.0,0.16834]
[1750355807690,1.18862483,104670.0,104660.0,0.26361893]
[1750355807899,1.18862483,104670.0,104660.0,0.09537893]
[1750355808109,1.18862483,104670.0,104660.0,0.26349893]
[1750355808330,1.18862483,104670.0,104660.0,0.0001]
[1750355808767,1.22072483,104670.0,104660.0,0.0001]
[1750355809655,1.22072483,104670.0,104640.0,0.03176]
[1750355809656,0.2102239,104650.0,104640.0,0.06176]
[1750355809863,0.2102239,104650.0,104640.0,0.30220152]
[1750355809864,0.81756317,104650.0,104640.0,0.30220152]
[1750355810074,1.15756317,104650.0,104640.0,0.30220152]
[1750355810294,1.15756317,104650.0,104640.0,0.13428152]
[1750355810524,1.15756317,104650.0,104640.0,0.302163]
[1750355810788,1.15756317,104650.0,104640.0,0.134283]
[1750355811010,1.77445764,104650.0,104640.0,0.134283]
[1750355811230,1.77445764,104650.0,104640.0,0.17740407]
[1750355811419,1.77445764,104650.0,104640.0,0.18040407]
[1750355811670,1.80725764,104650.0,104640.0,0.01200407]
[1750355811890,1.80725764,104650.0,104640.0,0.17764407]
[1750355812124,1.90452749,104650.0,104640.0,0.00900407]
[1750355812371,0.20068788,104640.0,104630.0,0.0001]
[1750355812586,1.43447682,104640.0,104630.0,0.10421291]
[1750355813041,1.44403312,104640.0,104630.0,0.10421291]
[1750355813264,1.43447682,104640.0,104630.0,0.30357291]
[1750355813490,1.43447682,104640.0,104630.0,0.00893398]
[1750355813491,1.93294667,104640.0,104630.0,0.00893398]
[1750355813710,6.82447682,104640.0,104630.0,0.00893398]
[1750355813944,6.82847682,104640.0,104630.0,0.00893398]
[1750355814668,6.82847682,104640.0,104630.0,0.00993398]
[1750355815549,6.91673898,104640.0,104630.0,0.00993398]
[1750355815996,6.91673898,104640.0,104630.0,0.00992196]
[1750355816217,6.86027682,104640.0,104630.0,0.00992196]
[1750355817801,6.89217682,104640.0,104630.0,0.00892196]
[1750355818225,6.88817682,104640.0,104630.0,0.00892196]
[1750355818512,6.89417682,104640.0,104630.0,0.00892196]
[1750355818750,6.89417682,104640.0,104630.0,0.02656786]
[1750355819177,6.86227682,104640.0,104630.0,0.02656786]
[1750355819712,1.16715856,104630.0,104620.0,0.38912204]
[1750355819945,1.16715856,104630.0,104620.0,0.42888007]
[1750355820160,1.15760162,104630.0,104620.0,0.42888016]
[1750355820381,1.15760162,104630.0,104620.0,0.43843819]
[1750355820609,0.96645122,104630.0,104620.0,0.56371648]
[1750355820838,0.55624417,104640.0,104630.0,0.25142139]
[1750355821067,1.80914561,104640.0,104630.0,0.37670032]
[1750355821503,1.80914561,104640.0,104630.0,0.37170032]
[1750355821720,1.60245755,104640.0,104630.0,0.38125716]
[1750355822161,1.80314561,104640.0,104630.0,0.38125716]
[1750355822614,1.80414561,104640.0,104630.0,0.37170032]
[1750355822831,1.81014561,104640.0,104630.0,0.37170032]
[1750355823051,1.81014561,104640.0,104630.0,0.36714338]
[1750355823052,1.56418389,104640.0,104630.0,0.36714338]
[1750355823272,1.54507176,104640.0,104630.0,0.36714338]
[1750355823500,1.54507176,104640.0,104630.0,0.3767005]
[1750355824354,1.34438342,104640.0,104630.0,0.38625753]
[1750355824595,1.54507139,104640.0,104630.0,0.39581437]
[1750355824834,1.22418435,104640.0,104630.0,0.3767005]
[1750355825050,1.22418435,104640.0,104630.0,0.36714356]
[1750355825051,6.60462815,104640.0,104630.0,0.36714356]
[1750355825271,6.59507176,104640.0,104630.0,0.36714356]
[1750355825495,7.07942889,104640.0,104630.0,0.26431893]
[1750355825720,7.14309878,104640.0,104630.0,0.26431893]
[1750355826194,7.17589878,104640.0,104630.0,0.16904]
[1750355826399,7.20659878,104640.0,104630.0,0.16904]
[1750355826847,0.54070706,104630.0,104620.0,0.23978159]
[1750355827059,1.52853428,104630.0,104620.0,0.50390052]
[1750355827499,1.52853428,104630.0,104620.0,0.4943424]
[1750355827715,1.52853428,104630.0,104620.0,0.5039009]
[1750355827942,5.59070706,104630.0,104620.0,0.51345902]
[1750355828150,6.09417788,104630.0,104620.0,0.55511696]
[1750355828391,5.75817788,104630.0,104620.0,0.55511696]
[1750355828624,6.10773527,104630.0,104620.0,0.55611696]
[1750355828847,6.11729275,104630.0,104620.0,0.38727696]
[1750355829070,6.24091637,104630.0,104620.0,0.55603696]
[1750355829548,5.394,104630.0,104620.0,0.56559472]
[1750355829818,6.01153723,104630.0,104620.0,0.56559472]
[1750355830519,5.394,104630.0,104620.0,0.56559472]
[1750355830940,6.01153723,104630.0,104620.0,0.56559472]
[1750355831177,5.394,104630.0,104620.0,0.56559472]
[1750355831399,6.01153723,104630.0,104620.0,0.56559472]
[1750355832048,6.02109389,104630.0,104620.0,0.56559472]
[1750355832277,5.70337901,104630.0,104620.0,0.56559472]
[1750355832492,5.42584169,104630.0,104620.0,0.56559472]
[1750355832704,6.02426551,104630.0,104620.0,0.56559472]
[1750355832922,6.03382217,104630.0,104620.0,0.56559472]
[1750355833350,6.04337901,104630.0,104620.0,0.56559472]
[1750355833573,6.25364374,104630.0,104620.0,0.35860517]
[1750355833775,6.2440869,104630.0,104620.0,0.32655893]
[1750355834109,6.23452996,104630.0,104620.0,0.32655893]
[1750355835166,6.23452996,104630.0,104620.0,0.33623733]
[1750355835417,6.23452996,104630.0,104620.0,0.32667893]
[1750355835943,6.23452996,104630.0,104620.0,0.29457893]
[1750355836172,6.23452996,104630.0,104620.0,0.29449893]
[1750355836631,6.23452996,104630.0,104620.0,0.12577893]
[1750355836871,6.4528697,104630.0,104620.0,0.00986775]
[1750355837103,6.4528697,104630.0,104600.0,0.23020958]
[1750355837104,0.21030429,104610.0,104600.0,0.0833]
[1750355837336,5.87784152,104610.0,104600.0,0.17857893]
[1750355837577,6.86676006,104610.0,104600.0,0.18884]
[1750355837809,6.83537875,104610.0,104600.0,0.20658503]
[1750355838035,6.82980299,104610.0,104600.0,0.18884]
[1750355838508,6.83180299,104610.0,104600.0,0.18984]
[1750355838746,6.83180299,104610.0,104600.0,0.18884]
[1750355838952,6.83180299,104610.0,104600.0,0.19084]
[1750355839167,6.22126576,104610.0,104600.0,0.023]
[1750355839377,6.22126576,104610.0,104600.0,0.18984]
[1750355840261,6.22126576,104610.0,104600.0,0.22174]
[1750355840694,6.22326576,104610.0,104600.0,0.19084]
[1750355840905,6.22326576,104610.0,104600.0,0.22104]
[1750355841630,6.22326576,104610.0,104600.0,0.37018351]
[1750355841834,6.23282507,104610.0,104600.0,0.54866364]
[1750355842047,6.23282507,104610.0,104600.0,0.38930368]
[1750355842266,6.23282507,104610.0,104600.0,0.55818368]
[1750355842480,6.23282507,104610.0,104600.0,0.53906351]
[1750355842715,6.23282507,104610.0,104600.0,0.54862373]
[1750355842925,6.23282507,104610.0,104600.0,0.55818368]
[1750355843136,6.23282507,104610.0,104600.0,0.56774336]
[1750355843783,6.03207945,104610.0,104600.0,0.57730294]
[1750355844209,6.23282498,104610.0,104600.0,0.57730294]
[1750355844429,6.24238429,104610.0,104600.0,0.56774336]
[1750355844871,6.04163867,104610.0,104600.0,0.57730294]
[1750355845095,6.24238429,104610.0,104600.0,0.56774336]
[1750355845545,6.03207881,104610.0,104600.0,0.57730294]
[1750355845759,6.05119679,104610.0,104600.0,0.57730294]
[1750355845974,6.0511967,104610.0,104600.0,0.57730294]
[1750355847082,6.06075583,104610.0,104600.0,0.57730294]
[1750355847305,6.25194287,104610.0,104600.0,0.56774336]
[1750355847519,6.24238411,104610.0,104600.0,0.57742331]
[1750355847968,6.24238411,104610.0,104600.0,0.40842331]
[1750355848178,6.23282526,104610.0,104600.0,0.57746331]
[1750355848602,6.03207964,104610.0,104600.0,0.58702289]
[1750355848813,6.03207927,104610.0,104600.0,0.58702289]
[1750355849096,6.40295644,104610.0,104600.0,0.58702289]
[1750355849292,6.41251557,104610.0,104600.0,0.58702289]
[1750355849729,6.42207479,104610.0,104600.0,0.58702289]
[1750355850151,6.62282041,104610.0,104600.0,0.58702289]
[1750355850387,6.61326165,104610.0,104600.0,0.57746331]
[1750355850591,6.61326165,104610.0,104600.0,0.58702299]
[1750355851664,6.61326165,104610.0,104600.0,0.41798299]